[Event "Late-Titled-Tuesday-Blitz-May-14-2024"]
[Site "Chess.com"]
[Date "2024.05.14"]
[Round "1"]
[White "Arystanner"]
[Black "Chessdemon2019"]
[Result "1-0"]
[WhiteElo "2837"]
[BlackElo "2462"]
[TimeControl "180+1"]
[EndTime "14:02:17 PDT"]
[Termination "Arystanner won by resignation"]

1. d4 {[%clk 0:03:00.9]} 1... e6 {[%clk 0:02:59.5]} 2. Nf3 {[%clk 0:02:58.5]}
2... Nf6 {[%clk 0:02:58.2]} 3. c4 {[%clk 0:02:57.9]} 3... b6 {[%clk 0:02:58.6]}
4. g3 {[%clk 0:02:57.4]} 4... Bb7 {[%clk 0:02:58.9]} 5. Bg2 {[%clk 0:02:57.5]}
5... Bb4+ {[%clk 0:02:59.3]} 6. Bd2 {[%clk 0:02:55.3]} 6... Bxd2+ {[%clk
0:02:59.4]} 7. Qxd2 {[%clk 0:02:55.2]} 7... O-O {[%clk 0:02:59.1]} 8. Nc3 {[%clk
0:02:55.2]} 8... d6 {[%clk 0:02:59.4]} 9. Qc2 {[%clk 0:02:54.6]} 9... Nbd7
{[%clk 0:02:56]} 10. O-O {[%clk 0:02:50.2]} 10... Qe7 {[%clk 0:02:54.3]} 11.
Rad1 {[%clk 0:02:48.2]} 11... c5 {[%clk 0:02:50.7]} 12. d5 {[%clk 0:02:46.4]}
12... exd5 {[%clk 0:02:49.4]} 13. cxd5 {[%clk 0:02:43.3]} 13... Rfe8 {[%clk
0:02:46.5]} 14. Rfe1 {[%clk 0:02:38.8]} 14... Ne5 {[%clk 0:02:31]} 15. Nxe5
{[%clk 0:02:36.5]} 15... Qxe5 {[%clk 0:02:31.2]} 16. e4 {[%clk 0:02:36.6]} 16...
Bc8 {[%clk 0:02:19.8]} 17. f4 {[%clk 0:02:35.1]} 17... Qe7 {[%clk 0:02:19.5]}
18. e5 {[%clk 0:02:31.9]} 18... dxe5 {[%clk 0:02:16.8]} 19. d6 {[%clk
0:02:29.3]} 1-0

[Event "Late-Titled-Tuesday-Blitz-May-14-2024"]
[Site "Chess.com"]
[Date "2024.05.14"]
[Round "1"]
[White "XDPS"]
[Black "tgpgoat"]
[Result "1-0"]
[WhiteElo "2805"]
[BlackElo "2450"]
[TimeControl "180+1"]
[EndTime "14:02:29 PDT"]
[Termination "XDPS won by resignation"]

1. d4 {[%clk 0:02:57.3]} 1... Nf6 {[%clk 0:02:58.5]} 2. Nf3 {[%clk 0:02:56.2]}
2... c5 {[%clk 0:02:58.8]} 3. d5 {[%clk 0:02:54.7]} 3... b5 {[%clk 0:02:58.2]}
4. a4 {[%clk 0:02:53.1]} 4... bxa4 {[%clk 0:02:58]} 5. c4 {[%clk 0:02:52.9]}
5... d6 {[%clk 0:02:58.3]} 6. Nc3 {[%clk 0:02:51.8]} 6... g6 {[%clk 0:02:57.7]}
7. e4 {[%clk 0:02:51.6]} 7... Bg7 {[%clk 0:02:58]} 8. Bd3 {[%clk 0:02:51.8]}
8... O-O {[%clk 0:02:57.8]} 9. O-O {[%clk 0:02:52.1]} 9... Nbd7 {[%clk
0:02:57.5]} 10. Rxa4 {[%clk 0:02:45.8]} 10... Nb6 {[%clk 0:02:55.1]} 11. Ra2
{[%clk 0:02:46.4]} 11... Nfd7 {[%clk 0:02:55.3]} 12. Re1 {[%clk 0:02:45.6]}
12... a5 {[%clk 0:02:55.2]} 13. Bg5 {[%clk 0:02:42.8]} 13... Ba6 {[%clk
0:02:53.9]} 14. Nd2 {[%clk 0:02:39.7]} 14... h6 {[%clk 0:02:51.1]} 15. Bf4
{[%clk 0:02:39.2]} 15... Bb7 {[%clk 0:02:49.8]} 16. Qc2 {[%clk 0:02:33]} 16...
Ne5 {[%clk 0:02:48.3]} 17. Bf1 {[%clk 0:02:32.8]} 17... Ba6 {[%clk 0:02:46.8]}
18. b3 {[%clk 0:02:32.4]} 18... Qc7 {[%clk 0:02:40]} 19. h3 {[%clk 0:02:32.2]}
19... Rfb8 {[%clk 0:02:38.2]} 20. Be3 {[%clk 0:02:30.9]} 20... Ned7 {[%clk
0:02:35.1]} 21. Rxa5 {[%clk 0:02:30.2]} 21... Nxc4 {[%clk 0:02:33]} 22. Nxc4
{[%clk 0:02:26.9]} 22... Bxc4 {[%clk 0:02:30.8]} 23. Rxa8 {[%clk 0:02:27.6]}
23... Rxa8 {[%clk 0:02:20.8]} 24. bxc4 {[%clk 0:02:27.8]} 24... Qa5 {[%clk
0:02:20.4]} 25. Rc1 {[%clk 0:02:26.1]} 25... Rb8 {[%clk 0:02:20.4]} 26. Nb5
{[%clk 0:02:26.1]} 26... Nb6 {[%clk 0:02:19.3]} 27. Qd2 {[%clk 0:02:23.7]} 27...
Kh7 {[%clk 0:02:18.8]} 28. Qxa5 {[%clk 0:02:23.4]} 1-0

[Event "Late-Titled-Tuesday-Blitz-May-14-2024"]
[Site "Chess.com"]
[Date "2024.05.14"]
[Round "1"]
[White "dealshark"]
[Black "MikeSailer"]
[Result "1-0"]
[WhiteElo "2564"]
[BlackElo "2063"]
[TimeControl "180+1"]
[EndTime "14:02:29 PDT"]
[Termination "dealshark won by resignation"]

1. e4 {[%clk 0:02:54.5]} 1... d5 {[%clk 0:02:58.1]} 2. exd5 {[%clk 0:02:54.7]}
2... Qxd5 {[%clk 0:02:57.9]} 3. h3 {[%clk 0:02:48.3]} 3... Nf6 {[%clk
0:02:55.6]} 4. Nc3 {[%clk 0:02:46.2]} 4... Qd6 {[%clk 0:02:46.3]} 5. Nf3 {[%clk
0:02:46.5]} 5... c6 {[%clk 0:02:45.6]} 6. Bc4 {[%clk 0:02:44.9]} 6... Bf5 {[%clk
0:02:45.1]} 7. d4 {[%clk 0:02:44.8]} 7... e6 {[%clk 0:02:45]} 8. O-O {[%clk
0:02:44.6]} 8... Nbd7 {[%clk 0:02:44.6]} 9. Qe2 {[%clk 0:02:40.2]} 9... Nb6
{[%clk 0:02:43.5]} 10. Bb3 {[%clk 0:02:39.8]} 10... Be7 {[%clk 0:02:42.9]} 11.
Re1 {[%clk 0:02:38.9]} 11... O-O {[%clk 0:02:41.3]} 12. Bg5 {[%clk 0:02:38.1]}
12... h6 {[%clk 0:02:40.4]} 13. Bh4 {[%clk 0:02:37.2]} 13... Qc7 {[%clk
0:02:35.5]} 14. Rad1 {[%clk 0:02:34.4]} 14... a5 {[%clk 0:02:27.7]} 15. a3
{[%clk 0:02:30.7]} 15... a4 {[%clk 0:02:27]} 16. Ba2 {[%clk 0:02:30.6]} 16...
Ra5 {[%clk 0:02:26.9]} 17. g4 {[%clk 0:02:24.6]} 17... Bh7 {[%clk 0:02:25.8]}
18. Bg3 {[%clk 0:02:20.5]} 18... Nbd5 {[%clk 0:02:23.1]} 19. Bxc7 {[%clk
0:02:19.5]} 19... Nxc7 {[%clk 0:02:12.7]} 20. Ne5 {[%clk 0:02:15.3]} 1-0

[Event "Late-Titled-Tuesday-Blitz-May-14-2024"]
[Site "Chess.com"]
[Date "2024.05.14"]
[Round "1"]
[White "marcodobrikov"]
[Black "hawes33"]
[Result "0-1"]
[WhiteElo "2657"]
[BlackElo "2385"]
[TimeControl "180+1"]
[EndTime "14:02:45 PDT"]
[Termination "hawes33 won by resignation"]

1. Nf3 {[%clk 0:02:57.7]} 1... c5 {[%clk 0:03:00.9]} 2. e3 {[%clk 0:02:57.3]}
2... Nf6 {[%clk 0:02:58.8]} 3. d4 {[%clk 0:02:58.2]} 3... e6 {[%clk 0:02:58.7]}
4. c4 {[%clk 0:02:56.8]} 4... d5 {[%clk 0:02:57.4]} 5. cxd5 {[%clk 0:02:56.5]}
5... cxd4 {[%clk 0:02:55.4]} 6. dxe6 {[%clk 0:02:57]} 6... Bxe6 {[%clk
0:02:53.6]} 7. Nxd4 {[%clk 0:02:57.4]} 7... Bb4+ {[%clk 0:02:53.1]} 8. Bd2
{[%clk 0:02:56.9]} 8... Bxd2+ {[%clk 0:02:48.9]} 9. Qxd2 {[%clk 0:02:57.8]} 9...
O-O {[%clk 0:02:45.8]} 10. Nxe6 {[%clk 0:02:57.2]} 10... fxe6 {[%clk 0:02:45.6]}
11. Qxd8 {[%clk 0:02:55.8]} 11... Rxd8 {[%clk 0:02:46.5]} 12. Nc3 {[%clk
0:02:56.4]} 12... Nc6 {[%clk 0:02:45.9]} 13. Bc4 {[%clk 0:02:56.8]} 13... Kf7
{[%clk 0:02:42.9]} 14. Ke2 {[%clk 0:02:57.1]} 14... Ne5 {[%clk 0:02:43.1]} 15.
Bb3 {[%clk 0:02:57]} 15... a6 {[%clk 0:02:41.9]} 16. Rhd1 {[%clk 0:02:56.4]}
16... b5 {[%clk 0:02:42]} 17. h3 {[%clk 0:02:56.7]} 17... Rac8 {[%clk
0:02:41.1]} 18. Rac1 {[%clk 0:02:56.7]} 18... Nc4 {[%clk 0:02:41.3]} 19. Bxc4
{[%clk 0:02:56.6]} 19... Rxd1 {[%clk 0:02:41.3]} 20. Bxe6+ {[%clk 0:02:56.5]}
20... Kxe6 {[%clk 0:02:41.5]} 21. Rxd1 {[%clk 0:02:57]} 21... b4 {[%clk
0:02:41.5]} 22. Na4 {[%clk 0:02:54.3]} 22... Ne4 {[%clk 0:02:39.7]} 23. Kf3
{[%clk 0:02:47.9]} 23... Ke5 {[%clk 0:02:37.5]} 24. Rd4 {[%clk 0:02:46.3]} 24...
Rf8+ {[%clk 0:02:37]} 25. Ke2 {[%clk 0:02:44.8]} 25... Rxf2+ {[%clk 0:02:36]}
26. Ke1 {[%clk 0:02:45.7]} 26... Rxg2 {[%clk 0:02:34.7]} 27. Rxb4 {[%clk
0:02:45.5]} 27... Rh2 {[%clk 0:02:30.4]} 28. Nb6 {[%clk 0:02:42.1]} 28... Rxh3
{[%clk 0:02:27.2]} 29. Nc4+ {[%clk 0:02:32.1]} 29... Kd5 {[%clk 0:02:22.8]} 30.
Ra4 {[%clk 0:02:31.1]} 30... Nc5 {[%clk 0:02:19.1]} 31. Rb4 {[%clk 0:02:30.2]}
31... a5 {[%clk 0:02:17.5]} 32. Nxa5 {[%clk 0:02:29.9]} 32... Nd3+ {[%clk
0:02:17.4]} 0-1

[Event "Late-Titled-Tuesday-Blitz-May-14-2024"]
[Site "Chess.com"]
[Date "2024.05.14"]
[Round "1"]
[White "Anton_Demchenko"]
[Black "szachmistrz2500"]
[Result "1-0"]
[WhiteElo "2870"]
[BlackElo "2489"]
[TimeControl "180+1"]
[EndTime "14:03:03 PDT"]
[Termination "Anton_Demchenko won by resignation"]

1. e4 {[%clk 0:03:00.9]} 1... c5 {[%clk 0:02:59.6]} 2. Nc3 {[%clk 0:02:59.8]}
2... e6 {[%clk 0:02:59.1]} 3. a4 {[%clk 0:02:52]} 3... Nc6 {[%clk 0:02:56.5]} 4.
Bb5 {[%clk 0:02:52]} 4... Nge7 {[%clk 0:02:55.9]} 5. d3 {[%clk 0:02:46.8]} 5...
a6 {[%clk 0:02:56]} 6. Bc4 {[%clk 0:02:47.4]} 6... d5 {[%clk 0:02:53.4]} 7. Ba2
{[%clk 0:02:48]} 7... dxe4 {[%clk 0:02:51.2]} 8. Nxe4 {[%clk 0:02:47.6]} 8...
Nd5 {[%clk 0:02:46.6]} 9. Nf3 {[%clk 0:02:46.6]} 9... Be7 {[%clk 0:02:46.4]} 10.
O-O {[%clk 0:02:46.1]} 10... O-O {[%clk 0:02:46.4]} 11. c3 {[%clk 0:02:46.6]}
11... b5 {[%clk 0:02:46.5]} 12. Bb1 {[%clk 0:02:45.3]} 12... Bb7 {[%clk
0:02:43.9]} 13. Re1 {[%clk 0:02:45.1]} 13... Qd7 {[%clk 0:02:39]} 14. Qc2 {[%clk
0:02:37.1]} 14... Rad8 {[%clk 0:02:23.7]} 15. d4 {[%clk 0:02:35.7]} 15... f5
{[%clk 0:02:19.5]} 16. Nxc5 {[%clk 0:02:31.4]} 16... Bxc5 {[%clk 0:02:18.3]} 17.
dxc5 {[%clk 0:02:32.3]} 17... b4 {[%clk 0:02:05]} 18. Bg5 {[%clk 0:02:25.2]}
18... Rde8 {[%clk 0:02:02.6]} 19. Ba2 {[%clk 0:02:07.1]} 19... bxc3 {[%clk
0:01:57.9]} 20. bxc3 {[%clk 0:02:08]} 20... h6 {[%clk 0:01:55.9]} 21. Bd2 {[%clk
0:02:06.4]} 21... Qe7 {[%clk 0:01:52.9]} 22. Bxd5 {[%clk 0:02:05.6]} 1-0

[Event "Late-Titled-Tuesday-Blitz-May-14-2024"]
[Site "Chess.com"]
[Date "2024.05.14"]
[Round "1"]
[White "Polish_fighter3000"]
[Black "colegiodemadrid"]
[Result "1-0"]
[WhiteElo "3104"]
[BlackElo "2543"]
[TimeControl "180+1"]
[EndTime "14:03:11 PDT"]
[Termination "Polish_fighter3000 won by resignation"]

1. g3 {[%clk 0:03:00.9]} 1... Nf6 {[%clk 0:02:57.6]} 2. Bg2 {[%clk 0:03:01.8]}
2... g6 {[%clk 0:02:57.7]} 3. e4 {[%clk 0:03:00.5]} 3... e5 {[%clk 0:02:55.3]}
4. d4 {[%clk 0:02:51.4]} 4... exd4 {[%clk 0:02:51]} 5. e5 {[%clk 0:02:51.3]}
5... Qe7 {[%clk 0:02:50.6]} 6. Nf3 {[%clk 0:02:47.9]} 6... d6 {[%clk 0:02:45.8]}
7. O-O {[%clk 0:02:48]} 7... dxe5 {[%clk 0:02:44.8]} 8. Nxe5 {[%clk 0:02:48.9]}
8... Bg7 {[%clk 0:02:44]} 9. Re1 {[%clk 0:02:48.4]} 9... O-O {[%clk 0:02:06.8]}
10. Nxg6 {[%clk 0:02:47.4]} 10... Qd6 {[%clk 0:02:06.8]} 11. Bf4 {[%clk
0:02:44.6]} 11... Qd8 {[%clk 0:02:04.8]} 12. Nxf8 {[%clk 0:02:43]} 12... Kxf8
{[%clk 0:02:05.7]} 13. Na3 {[%clk 0:02:40.7]} 13... a6 {[%clk 0:02:04.2]} 14. c3
{[%clk 0:02:39.2]} 14... c5 {[%clk 0:02:02.4]} 15. cxd4 {[%clk 0:02:37]} 15...
cxd4 {[%clk 0:02:03.3]} 16. Nc4 {[%clk 0:02:31.3]} 16... Nc6 {[%clk 0:02:01.1]}
17. Qb3 {[%clk 0:02:28.8]} 17... Be6 {[%clk 0:01:55.7]} 18. Rxe6 {[%clk
0:02:25.5]} 18... fxe6 {[%clk 0:01:53.8]} 19. Qxb7 {[%clk 0:02:26.1]} 19... e5
{[%clk 0:01:44.4]} 20. Bxe5 {[%clk 0:02:14.7]} 20... Nxe5 {[%clk 0:01:41.5]} 21.
Nxe5 {[%clk 0:02:15.6]} 1-0

[Event "Late-Titled-Tuesday-Blitz-May-14-2024"]
[Site "Chess.com"]
[Date "2024.05.14"]
[Round "1"]
[White "PNEPaul"]
[Black "BabyAnton"]
[Result "0-1"]
[WhiteElo "1923"]
[BlackElo "2552"]
[TimeControl "180+1"]
[EndTime "14:03:19 PDT"]
[Termination "BabyAnton won by resignation"]

1. e4 {[%clk 0:02:59]} 1... e5 {[%clk 0:02:57.3]} 2. Nf3 {[%clk 0:02:58.9]} 2...
Nc6 {[%clk 0:02:57.6]} 3. Bc4 {[%clk 0:02:58.5]} 3... Nf6 {[%clk 0:02:54.6]} 4.
d4 {[%clk 0:02:58.1]} 4... exd4 {[%clk 0:02:54.2]} 5. O-O {[%clk 0:02:57.7]}
5... Bc5 {[%clk 0:02:51.4]} 6. e5 {[%clk 0:02:57.1]} 6... d5 {[%clk 0:02:50.9]}
7. exf6 {[%clk 0:02:56.9]} 7... dxc4 {[%clk 0:02:50.8]} 8. Re1+ {[%clk
0:02:57.1]} 8... Be6 {[%clk 0:02:50.7]} 9. Ng5 {[%clk 0:02:57]} 9... Qxf6 {[%clk
0:02:48.1]} 10. Nxe6 {[%clk 0:02:56.2]} 10... fxe6 {[%clk 0:02:48]} 11. Qh5+
{[%clk 0:02:55.9]} 11... Qg6 {[%clk 0:02:41.4]} 12. Qxc5 {[%clk 0:02:53.9]}
12... O-O-O {[%clk 0:02:41.3]} 13. Qxc4 {[%clk 0:02:53.7]} 13... Rd5 {[%clk
0:02:38.6]} 14. Qd3 {[%clk 0:02:38.1]} 14... Rf5 {[%clk 0:02:35.1]} 15. Qg3
{[%clk 0:02:35.2]} 15... Qf6 {[%clk 0:02:34.2]} 16. Nd2 {[%clk 0:02:28]} 16...
Rf8 {[%clk 0:02:33.7]} 17. Ne4 {[%clk 0:02:26.6]} 17... Qe7 {[%clk 0:02:32.8]}
18. Bg5 {[%clk 0:02:18.8]} 18... Qb4 {[%clk 0:02:32.8]} 19. c3 {[%clk
0:01:54.4]} 19... Qxb2 {[%clk 0:02:29.4]} 20. cxd4 {[%clk 0:01:39.5]} 20... Nxd4
{[%clk 0:02:28.9]} 21. Be7 {[%clk 0:01:23.7]} 21... Ne2+ {[%clk 0:02:19.4]} 0-1

[Event "Late-Titled-Tuesday-Blitz-May-14-2024"]
[Site "Chess.com"]
[Date "2024.05.14"]
[Round "1"]
[White "ccccvhhhj"]
[Black "ViIIagra"]
[Result "0-1"]
[WhiteElo "2464"]
[BlackElo "2838"]
[TimeControl "180+1"]
[EndTime "14:03:33 PDT"]
[Termination "ViIIagra won by checkmate"]

1. e4 {[%clk 0:03:00.9]} 1... d6 {[%clk 0:02:54.6]} 2. d4 {[%clk 0:03:00.6]}
2... Nf6 {[%clk 0:02:54.2]} 3. Nc3 {[%clk 0:03:01]} 3... g6 {[%clk 0:02:54.5]}
4. f3 {[%clk 0:03:01.6]} 4... a6 {[%clk 0:02:44.4]} 5. Be3 {[%clk 0:03:01.8]}
5... b5 {[%clk 0:02:44.5]} 6. Qd2 {[%clk 0:03:02.3]} 6... Bb7 {[%clk 0:02:43.7]}
7. g4 {[%clk 0:02:59.6]} 7... Nbd7 {[%clk 0:02:43.7]} 8. O-O-O {[%clk
0:02:57.1]} 8... Nb6 {[%clk 0:02:41.3]} 9. b3 {[%clk 0:02:33.5]} 9... b4 {[%clk
0:02:23.4]} 10. Nce2 {[%clk 0:02:33.1]} 10... h5 {[%clk 0:02:24]} 11. g5 {[%clk
0:02:28.6]} 11... Nfd7 {[%clk 0:02:07.6]} 12. Qxb4 {[%clk 0:02:20.4]} 12... a5
{[%clk 0:02:07.4]} 13. Qd2 {[%clk 0:02:09.3]} 13... a4 {[%clk 0:02:07.5]} 14.
Kb1 {[%clk 0:02:09.8]} 14... Bg7 {[%clk 0:02:06.4]} 15. Nc1 {[%clk 0:02:03.7]}
15... O-O {[%clk 0:02:04.6]} 16. Bg2 {[%clk 0:01:53.8]} 16... axb3 {[%clk
0:02:03.9]} 17. cxb3 {[%clk 0:01:54.7]} 17... Qb8 {[%clk 0:01:55]} 18. f4 {[%clk
0:01:44.7]} 18... Nc4 {[%clk 0:01:54.9]} 19. bxc4 {[%clk 0:01:24.3]} 19... Bxe4+
{[%clk 0:01:54.1]} 20. Ka1 {[%clk 0:01:24.9]} 20... Qb1# {[%clk 0:01:54.2]} 0-1

[Event "Late-Titled-Tuesday-Blitz-May-14-2024"]
[Site "Chess.com"]
[Date "2024.05.14"]
[Round "1"]
[White "lucasmito"]
[Black "KebabJangles"]
[Result "1-0"]
[WhiteElo "2698"]
[BlackElo "2371"]
[TimeControl "180+1"]
[EndTime "14:03:39 PDT"]
[Termination "lucasmito won by resignation"]

1. e4 {[%clk 0:02:59.8]} 1... c5 {[%clk 0:02:57.9]} 2. Nf3 {[%clk 0:02:58.2]}
2... e6 {[%clk 0:02:57.8]} 3. Nc3 {[%clk 0:02:59.1]} 3... Nc6 {[%clk 0:02:50.6]}
4. d4 {[%clk 0:02:58.7]} 4... cxd4 {[%clk 0:02:50.2]} 5. Nxd4 {[%clk 0:02:59.4]}
5... a6 {[%clk 0:02:49.9]} 6. Be3 {[%clk 0:02:52]} 6... Nxd4 {[%clk 0:02:47.1]}
7. Qxd4 {[%clk 0:02:50.8]} 7... d6 {[%clk 0:02:46.2]} 8. O-O-O {[%clk
0:02:45.3]} 8... Bd7 {[%clk 0:02:43.7]} 9. f4 {[%clk 0:02:34.9]} 9... Rc8 {[%clk
0:02:43.5]} 10. g4 {[%clk 0:02:31.2]} 10... Be7 {[%clk 0:02:38]} 11. g5 {[%clk
0:02:28]} 11... f6 {[%clk 0:02:36.2]} 12. h4 {[%clk 0:02:25.2]} 12... h6 {[%clk
0:02:30.4]} 13. Rg1 {[%clk 0:02:03.5]} 13... Kf8 {[%clk 0:02:26]} 14. gxf6
{[%clk 0:01:52.7]} 14... Nxf6 {[%clk 0:02:24.4]} 15. e5 {[%clk 0:01:52.3]} 15...
Ne8 {[%clk 0:02:22.1]} 16. exd6 {[%clk 0:01:50.5]} 16... Bf6 {[%clk 0:02:22.5]}
17. Qb4 {[%clk 0:01:45.7]} 17... Bxc3 {[%clk 0:02:19.2]} 18. bxc3 {[%clk
0:01:46.6]} 18... b5 {[%clk 0:02:17.9]} 19. Bd4 {[%clk 0:01:43]} 19... Nf6
{[%clk 0:02:15.1]} 20. Rg6 {[%clk 0:01:39.6]} 20... Qe8 {[%clk 0:02:04.7]} 21.
Bd3 {[%clk 0:01:36.4]} 21... Qf7 {[%clk 0:01:50.5]} 22. Rdg1 {[%clk 0:01:33.7]}
22... Rg8 {[%clk 0:01:50]} 23. Bxf6 {[%clk 0:01:32.4]} 1-0

[Event "Late-Titled-Tuesday-Blitz-May-14-2024"]
[Site "Chess.com"]
[Date "2024.05.14"]
[Round "1"]
[White "chessdjw"]
[Black "Eloist"]
[Result "1-0"]
[WhiteElo "2756"]
[BlackElo "2422"]
[TimeControl "180+1"]
[EndTime "14:03:57 PDT"]
[Termination "chessdjw won by resignation"]

1. e4 {[%clk 0:03:00.9]} 1... e6 {[%clk 0:02:54.5]} 2. d4 {[%clk 0:03:00.6]}
2... d5 {[%clk 0:02:54.6]} 3. exd5 {[%clk 0:03:00.8]} 3... exd5 {[%clk
0:02:54.4]} 4. Nf3 {[%clk 0:03:01.5]} 4... Bf5 {[%clk 0:02:53.9]} 5. c4 {[%clk
0:02:39.7]} 5... Bxb1 {[%clk 0:02:52.9]} 6. Rxb1 {[%clk 0:02:39.6]} 6... Bb4+
{[%clk 0:02:53.2]} 7. Bd2 {[%clk 0:02:40]} 7... Bxd2+ {[%clk 0:02:53.3]} 8. Qxd2
{[%clk 0:02:40.9]} 8... Nf6 {[%clk 0:02:53]} 9. Bd3 {[%clk 0:02:29.8]} 9... O-O
{[%clk 0:02:51.2]} 10. O-O {[%clk 0:02:29.5]} 10... dxc4 {[%clk 0:02:51.4]} 11.
Bxc4 {[%clk 0:02:29.5]} 11... Nc6 {[%clk 0:02:49.7]} 12. a3 {[%clk 0:02:24.9]}
12... Qd6 {[%clk 0:02:49.2]} 13. Rfe1 {[%clk 0:02:19.8]} 13... Rad8 {[%clk
0:02:48.7]} 14. Rbd1 {[%clk 0:02:19.4]} 14... Rfe8 {[%clk 0:02:46.5]} 15. Ng5
{[%clk 0:01:54]} 15... Rxe1+ {[%clk 0:02:17.9]} 16. Qxe1 {[%clk 0:01:47.7]}
16... Nxd4 {[%clk 0:02:00.1]} 17. Nxf7 {[%clk 0:01:22.5]} 17... Nf3+ {[%clk
0:01:42]} 18. gxf3 {[%clk 0:01:21.8]} 18... Qxd1 {[%clk 0:01:35]} 19. Nxd8+
{[%clk 0:01:22.3]} 1-0

[Event "Late-Titled-Tuesday-Blitz-May-14-2024"]
[Site "Chess.com"]
[Date "2024.05.14"]
[Round "1"]
[White "familijatop71"]
[Black "TheKnightOfBosnia"]
[Result "0-1"]
[WhiteElo "2318"]
[BlackElo "2637"]
[TimeControl "180+1"]
[EndTime "14:04:15 PDT"]
[Termination "TheKnightOfBosnia won by resignation"]

1. e4 {[%clk 0:03:00.9]} 1... c5 {[%clk 0:02:59.7]} 2. c3 {[%clk 0:03:00.1]}
2... d6 {[%clk 0:02:59.1]} 3. d4 {[%clk 0:02:59.6]} 3... Nf6 {[%clk 0:02:58.3]}
4. Bd3 {[%clk 0:02:58.3]} 4... e5 {[%clk 0:02:56.8]} 5. dxe5 {[%clk 0:02:44.9]}
5... dxe5 {[%clk 0:02:57.2]} 6. Nf3 {[%clk 0:02:45.1]} 6... Nc6 {[%clk
0:02:56.5]} 7. h3 {[%clk 0:02:42.8]} 7... Bd6 {[%clk 0:02:52.5]} 8. O-O {[%clk
0:02:42.6]} 8... h6 {[%clk 0:02:51.5]} 9. Nbd2 {[%clk 0:02:41.1]} 9... O-O
{[%clk 0:02:49.5]} 10. Nc4 {[%clk 0:02:41.1]} 10... Bc7 {[%clk 0:02:49.9]} 11.
Ne3 {[%clk 0:02:40.6]} 11... Be6 {[%clk 0:02:47.9]} 12. c4 {[%clk 0:02:32.1]}
12... Nd4 {[%clk 0:02:46.4]} 13. Nd5 {[%clk 0:02:24.7]} 13... Bxd5 {[%clk
0:02:45.1]} 14. cxd5 {[%clk 0:02:12.9]} 14... Re8 {[%clk 0:02:42.1]} 15. b3
{[%clk 0:01:49.1]} 15... Qd7 {[%clk 0:02:36.4]} 16. a4 {[%clk 0:01:45.1]} 16...
Rad8 {[%clk 0:02:29.6]} 17. Nxd4 {[%clk 0:01:44.9]} 17... exd4 {[%clk
0:02:29.9]} 18. Bb5 {[%clk 0:01:45]} 18... Qd6 {[%clk 0:02:30.4]} 19. f4 {[%clk
0:01:37.8]} 19... Rxe4 {[%clk 0:02:28.9]} 20. Bd3 {[%clk 0:01:26.9]} 20... Re7
{[%clk 0:02:28.2]} 21. Qf3 {[%clk 0:01:25.8]} 21... Qxd5 {[%clk 0:02:26.8]} 22.
Qxd5 {[%clk 0:01:19.7]} 22... Nxd5 {[%clk 0:02:26.4]} 23. f5 {[%clk 0:01:16.9]}
23... Be5 {[%clk 0:02:14.3]} 24. Ba3 {[%clk 0:01:10.1]} 24... b6 {[%clk
0:02:09.2]} 25. a5 {[%clk 0:01:09.8]} 25... Nf4 {[%clk 0:02:02.6]} 26. Bc4
{[%clk 0:01:03.7]} 26... d3 {[%clk 0:02:01]} 27. axb6 {[%clk 0:01:03.3]} 27...
Bxa1 {[%clk 0:01:54.8]} 0-1

[Event "Late-Titled-Tuesday-Blitz-May-14-2024"]
[Site "Chess.com"]
[Date "2024.05.14"]
[Round "1"]
[White "DominguezOnYoutube"]
[Black "Balla_Tamas"]
[Result "1-0"]
[WhiteElo "3023"]
[BlackElo "2533"]
[TimeControl "180+1"]
[EndTime "14:04:29 PDT"]
[Termination "DominguezOnYoutube won by resignation"]

1. e4 {[%clk 0:03:00.9]} 1... c5 {[%clk 0:02:59.4]} 2. Nf3 {[%clk 0:03:00.2]}
2... Nc6 {[%clk 0:02:59.9]} 3. d4 {[%clk 0:02:59.9]} 3... cxd4 {[%clk
0:03:00.1]} 4. Nxd4 {[%clk 0:03:00.4]} 4... e5 {[%clk 0:03:00.9]} 5. Nb5 {[%clk
0:02:59.9]} 5... d6 {[%clk 0:03:01.3]} 6. c4 {[%clk 0:02:59]} 6... Be7 {[%clk
0:03:01.3]} 7. N1c3 {[%clk 0:02:57.5]} 7... a6 {[%clk 0:03:01.7]} 8. Na3 {[%clk
0:02:57.6]} 8... f5 {[%clk 0:03:02.4]} 9. exf5 {[%clk 0:02:57.7]} 9... Bxf5
{[%clk 0:03:03.3]} 10. Bd3 {[%clk 0:02:57.7]} 10... Be6 {[%clk 0:03:03.9]} 11.
Nc2 {[%clk 0:02:57]} 11... Nf6 {[%clk 0:03:04.1]} 12. O-O {[%clk 0:02:56.5]}
12... O-O {[%clk 0:03:04.4]} 13. Ne3 {[%clk 0:02:56]} 13... Qd7 {[%clk
0:03:04.6]} 14. Ned5 {[%clk 0:02:55.5]} 14... Rae8 {[%clk 0:03:03.5]} 15. Be3
{[%clk 0:02:52.4]} 15... Bd8 {[%clk 0:03:01.6]} 16. f3 {[%clk 0:02:51]} 16...
Ne7 {[%clk 0:02:49]} 17. Nxe7+ {[%clk 0:02:32.1]} 17... Rxe7 {[%clk 0:02:29.7]}
18. b3 {[%clk 0:02:24.6]} 18... Qc6 {[%clk 0:02:12.6]} 19. Qd2 {[%clk
0:01:39.9]} 19... Bb6 {[%clk 0:02:05.2]} 20. Bxb6 {[%clk 0:01:36.3]} 20... Qxb6+
{[%clk 0:02:06.1]} 21. Kh1 {[%clk 0:01:36.2]} 21... Qd4 {[%clk 0:02:00]} 22.
Rad1 {[%clk 0:01:34]} 22... Qh4 {[%clk 0:01:59.6]} 23. Ne4 {[%clk 0:01:30.9]}
23... Rd7 {[%clk 0:01:49.9]} 24. Qg5 {[%clk 0:01:15.7]} 24... Qh5 {[%clk
0:01:26.3]} 25. Nxf6+ {[%clk 0:01:14.6]} 1-0